Workbook

Sheet Simulador
L1: Data : | N1: =TODAY() -> 2025-10-28
B5: SIMULADOR DE TRATAMENTO TRIBUTÁRIO
B7: DADOS CADASTRAIS
B9: NOME : | L9: SALÁRIO BRUTO :
B11: Nº DEPENDENTES : | D11: =Auxiliar!B5 -> 2 | L11: RENDIMENTOS EXTRAS ** :
B13: DATA DE NASCIMENTO : | G13: CPF : | L13: CONTRIBUIÇÃO ANUAL EM PREVIDÊNCIA * :
B15: TRATAMENTO TRIBUTÁRIO
B17: SEM PLANO DE PREVIDÊNCIA | G17: COM PLANO DE PREVIDÊNCIA | L17: COM PLANO DE PREVIDÊNCIA E APORTE
B19: Salário Bruto Anual Tributável | D19: =IF(ISERROR(IF(N9="",0,Auxiliar!$B$2*N9+N11)),0,IF(N9="",0,Auxiliar!$B$2*N9+N11)) -> 0 | G19: Salário Bruto Anual Tributável | I19: =D19 -> 0 | L19: Salário Bruto Anual Tributável | N19: =I19 -> 0
B21: Valor do INSS | D21: =IF(ISERROR(Auxiliar!B13),0,Auxiliar!B13) -> 0 | G21: Valor do INSS | I21: =D21 -> 0 | L21: Valor do INSS | N21: =I21 -> 0
B23: N.º de Dependentes | D23: =Auxiliar!B5 -> 2 | G23: N.º de Dependentes | I23: =D23 -> 2 | L23: N.º de Dependentes | N23: =I23 -> 2
B25: Dedução dos Dependentes | D25: =Auxiliar!G10*D23 -> 4550.16 | G25: Dedução dos Dependentes | I25: =D25 -> 4550.16 | L25: Dedução dos Dependentes | N25: =I25 -> 4550.16
B27: Plano de Previdência | D27: 0 | G27: Plano de Previdência | I27: =IF(OR(I19="",I19=0),0,MIN(12%*I19,Auxiliar!B17)) -> 0 | L27: Plano de Previdência + Aporte | N27: =IF(OR(I19="",I19=0),0,MIN(12%*I19,Auxiliar!B17))+Auxiliar!B19 -> 0
B29: Base para Cálculo IR | D29: =D19-D21-D25 -> -4550.16 | G29: Base para Cálculo IR | I29: =I19-I21-I25-I27 -> -4550.16 | L29: Base para Cálculo IR | N29: =N19-N21-N25-N27 -> -4550.16
B31: Alíquota de IR | D31: =IF(ISERROR(Auxiliar!G23),"",Auxiliar!G23) -> 0 | G31: Alíquota de IR | I31: =IF(ISERROR(Auxiliar!G24),"",Auxiliar!G24) -> 0 | L31: Alíquota de IR | N31: =IF(ISERROR(Auxiliar!G25),"",Auxiliar!G25) -> 0
B33: Parcela a Deduzir | D33: =IF(ISERROR(Auxiliar!H23),0,Auxiliar!H23) -> 0 | G33: Parcela a Deduzir | I33: =IF(ISERROR(Auxiliar!H24),0,Auxiliar!H24) -> 0 | L33: Parcela a Deduzir | N33: =IF(ISERROR(Auxiliar!H25),0,Auxiliar!H25) -> 0
B35: Imposto Devido | D35: =IF(ISERROR(Auxiliar!I23),0,Auxiliar!I23) -> 0 | G35: Imposto Devido | I35: =IF(ISERROR(Auxiliar!I24),0,Auxiliar!I24) -> 0 | L35: Imposto Devido | N35: =IF(ISERROR(Auxiliar!I25),0,Auxiliar!I25) -> 0
G38: VALOR A SER APORTADO PARA DEDUÇÃO MÁXIMA DE 12% : | N38: =IF(ISERROR(Auxiliar!B19),0,Auxiliar!B19) -> 0
B41: Nota :
B42: ="1) Observe que com este investimento em Previdência Complementar ( Aporte ), você reduz o imposto de renda a pagar no ano-calendário 2025." -> 1) Observe que com este investimento em Previdência Complementar ( Aporte ), você reduz o imposto de renda a pagar no ano-calendário 2025.
B43: ="2) Haverá incidência de Imposto de Renda quando os valores forem resgatados ou transformados em renda mensal, de acordo com o Regime Tributário escolhido." -> 2) Haverá incidência de Imposto de Renda quando os valores forem resgatados ou transformados em renda mensal, de acordo com o Regime Tributário escolhido.
B44: 3) O 13° Salário e o PPR por terem tributação exclusiva na fonte, não compõem a renda bruta anual tributável para fins do cálculo do limite de 12%.
B45: 4) Simulador atualizado com a Tabela de IRF vigente, publicada em janeiro/2025 e INSS de 2025.
B47: ( * ) : Toda contribuição feita em Previdência Complementar em Planos Fechados e na modalidade PGBL (Individual, Empresarial ou Voluntária).
B48: ( ** ) : Qualquer outra renda tributável auferida no período.

Sheet Auxiliar (hidden)
A1: 13 SALÁRIO | B1: 2 | D1: TABELA DO INSS (a partir de 01/01/2025)
A2: SIM | B2: =IF(B1=1,13,12) -> 12 | D2: 1518 | E2: =$B$2*D2 -> 18216 | F2: 0.075 | H2: =IF($B$9>=D2,D2,B9) -> 0 | I2: =H2*F2 -> 0 | J2: =IF(H2>0,"s","n") -> n | L2: https://www.gov.br/receitafederal/pt-br/assuntos/meu-imposto-de-renda/tabelas/2025
A3: NÃO | D3: 2793.88 | E3: =$B$2*D3 -> 33526.56 | F3: 0.09 | H3: =IF($B$9>D3,D3-D2,$B$9-D2) -> -1518 | I3: =H3*F3 -> -136.62 | J3: =IF(H3>0,"s","n") -> n
D4: 4190.83 | E4: =$B$2*D4 -> 50289.96 | F4: 0.12 | H4: =IF($B$9>D4,D4-D3,$B$9-D3) -> -2793.88 | I4: =H4*F4 -> -335.2656 | J4: n
A5: DEPENDENTES : | B5: 2 | D5: 8157.41 | E5: =$B$2*D5 -> 97888.92 | F5: 0.14 | H5: =IF($B$9>D5,D5-D4,$B$9-D4) -> -4190.83 | I5: =H5*F5 -> -586.7162 | J5: n
I6: =SUMIF($J$2:$J$6,"s",$I$2:$I$6) -> 0
A9: SALÁRIO : | B9: =Simulador!N9 -> 0 | F9: Mensal | G9: Anual
D10: DED DEPENDENTES : | F10: 189.59 | G10: =F10*12 -> 2275.08
A11: SALÁRIO ANUAL + RENDIMENTOS : | B11: =Simulador!I19 -> 0
D12: Mensal | E12: Anual | G12: Mensal | H12: Anual
A13: INSS : | B13: =IF(B9=0,0,I6*12) -> 0 | D13: IMPOSTO DE RENDA
D14: 2428.8 | E14: 28467.2 | F14: 0 | G14: 0 | H14: =12*G14 -> 0 | J14: =B11-B13 -> 0
A15: LIMITE DEDUÇÃO : | B15: =12%*B11 -> 0 | D15: 2428.81 | E15: 33919.8 | F15: 0.075 | G15: 182.16 | H15: 2135.04 | I15: PARCELA A DEDUZIR DEVE SER ATUALIZADA TBM | J15: =J14-H15 -> -2135.04
D16: 2826.66 | E16: 45012.6 | F16: 0.15 | G16: 394.16 | H16: 4679.03 | J16: =J15*F15 -> -160.128
A17: CONTR ANUAL : | B17: =Simulador!N13 -> 0 | D17: 3751.06 | E17: 55976.16 | F17: 0.225 | G17: 675.49 | H17: 8054.97 | J17: =J14*F15 -> 0
D18: 4664.68 | E18: 55976.16 | F18: 0.275 | G18: 908.73 | H18: 10853.78
A19: APORTE : | B19: =MAX(0,B15-B17) -> 0 | J19: =G15*12 -> 2185.92
A21: DIFERENÇA : | B21: =IF(I24-I25<1000,TEXT(I24-I25,"000,00"),TEXT(I24-I25,"0.000,00")) -> 000,00
F22: BASE | G22: ALIQUOTA | H22: DEDUÇÃO | I22: IMPOSTO
D23: SEM PLANO | F23: =Simulador!D29 -> -4550.16 | G23: =IF(F23<=$E$14,$F$14,IF(F23<=$E$15,$F$15,IF(F23<=$E$16,$F$16,IF(F23<=$E$17,$F$17,$F$18)))) -> 0 | H23: =IF(G23=$F$14,H14,IF(G23=$F$15,$H$15,IF(G23=$F$16,$H$16, IF(G23=$F$17,$H$17,$H$18)))) -> 0 | I23: =F23*G23-H23 -> 0
D24: COM PLANO | F24: =J24 -> -4550.16 | G24: =IF(F24<=$E$14,$F$14,IF(F24<=$E$15,$F$15,IF(F24<=$E$16,$F$16,IF(F24<=$E$17,$F$17,$F$18)))) -> 0 | H24: =IF(G24=$F$14,H14,IF(G24=$F$15,$H$15,IF(G24=$F$16,$H$16, IF(G24=$F$17,$H$17,$H$18)))) -> 0 | I24: =MAX(0,F24*G24-H24) -> 0 | J24: =ROUND(Simulador!I29,2) -> -4550.16
D25: COM PLANO + APORTE | F25: =Simulador!N29 -> -4550.16 | G25: =IF(F25<=$E$14,$F$14,IF(F25<=$E$15,$F$15,IF(F25<=$E$16,$F$16,IF(F25<=$E$17,$F$17,$F$18)))) -> 0 | H25: =IF(G25=$F$14,H14,IF(G25=$F$15,$H$15,IF(G25=$F$16,$H$16, IF(G25=$F$17,$H$17,$H$18)))) -> 0 | I25: =MAX(0,F25*G25-H25) -> 0 | J25: =Simulador!I29 -> -4550.16 | K25: APESAR DE SER 20 CENTAVOS, SE ABRIR A QUANTIDADE DE DIGITOS VAI TORNAR NUMERO MAIOR, EU APENAS ARRENDONDEI NA J24
G27: =F23*G23 -> 0
G28: =G27-H23 -> 0
E32: 32959 | F32: =E32*0.12 -> 3955.08
E33: =E32-C33 -> 32959 | F33: =E33*0.12 -> 3955.08
E34: 32961 | F34: 3955.32
E35: 32962 | F35: 3955.44
E36: 32963 | F36: 3955.56
E37: 32964 | F37: 3955.68
E38: 32965 | F38: 3955.8
